[Event "LAT-chT Higher League 2019"]
[Site "Riga"]
[Date "2019.10.12"]
[Round "8.11"]
[White "Mierins, Eriks"]
[Black "Semjonovs, Ilja"]
[Result "1/2-1/2"]
[ECO "B92"]
[WhiteElo "2194"]
[BlackElo "2357"]
[Annotator "NA"]
[PlyCount "35"]
[EventDate "2019.02.15"]
[EventType "team-tourn"]
[EventCountry "LAT"]
[SourceTitle "playchess.com"]
[Source "ChessBase"]
[SourceQuality "1"]
[TimeControl "40/5400+30:1800+30"]

1. e4 {[%emt 0:00:00]} c5 {[%emt 0:00:00]} 2. Nf3 {[%emt 0:00:04]} d6 {[%emt 0:00:00]} 3. d4 {[%emt 0:00:03]} cxd4 {[%emt 0:00:00]} 4. Nxd4 {[%emt 0:00:04]} Nf6 {[%emt 0:00:00]} 5. Nc3 {[%emt 0:00:05]} a6 {[%emt 0:00:00]} 6. Be2 {[%emt 0:00:37]} e5 {[%emt 0:00:06]} 7. Nb3 {[%emt 0:00:08]} Be7 {[%emt 0:00:06]} 8. Be3 {[%emt 0:01:51]} Be6 {[%emt 0:03:12]} 9. O-O {[%emt 0:03:12]} O-O {[%emt 0:00:06]} 10. f4 {[%emt 0:02:51]} exf4 {[%emt 0:00:13]} 11. Bxf4 {[%emt 0:00:10]} Nc6 {[%emt 0:00:03]} 12. Kh1 {[%emt 0:01:03]} d5 {[%emt 0:06:47]} 13. exd5 {[%emt 0:01:09]} Nxd5 {[%emt 0:02:19]} 14. Nxd5 {[%emt 0:02:41]} Qxd5 {[%emt 0:00:33]} 15. Qxd5 {[%emt 0:02:02]} Bxd5 {[%emt 0:00:05]} 16. Rad1 {[%emt 0:00:16]} Be6 {[%emt 0:10:39]} 17. c3 {[%emt 0:01:42]} Rac8 {[%emt 0:03:57]} 18. h3 {[%emt 0:03:09]} 1/2-1/2

[Event "LAT-chT Higher League 2019"]
[Site "Riga"]
[Date "2019.10.12"]
[Round "8.12"]
[White "Chukavin, Kirill"]
[Black "Wenzel, Birger"]
[Result "1-0"]
[ECO "B13"]
[WhiteElo "2332"]
[BlackElo "2055"]
[Annotator "NA"]
[PlyCount "83"]
[EventDate "2019.02.15"]
[EventType "team-tourn"]
[EventCountry "LAT"]
[SourceTitle "playchess.com"]
[Source "ChessBase"]
[SourceQuality "1"]
[TimeControl "40/5400+30:1800+30"]

1. e4 {[%emt 0:00:00]} c6 {[%emt 0:00:00]} 2. d4 {[%emt 0:00:00]} d5 {[%emt 0:00:00]} 3. exd5 {[%emt 0:00:00]} cxd5 {[%emt 0:00:00]} 4. Bd3 {[%emt 0:00:02]} Nf6 {[%emt 0:00:00]} 5. c3 {[%emt 0:00:38]} Bg4 {[%emt 0:00:45]} 6. Qb3 {[%emt 0:02:03]} Qd7 {[%emt 0:00:24]} 7. Nd2 {[%emt 0:13:13]} Nc6 {[%emt 0:01:35]} 8. Ngf3 {[%emt 0:01:59]} Qc7 {[%emt 0:01:08]} 9. h3 {[%emt 0:01:52]} Bxf3 {[%emt 0:01:30]} 10. Nxf3 {[%emt 0:00:10]} e6 {[%emt 0:00:10]} 11. Bf4 {[%emt 0:01:47]} Qc8 {[%emt 0:09:58]} 12. O-O {[%emt 0:02:31]} Be7 {[%emt 0:01:32]} 13. Rae1 {[%emt 0:01:43]} O-O {[%emt 0:04:29]} 14. Qc2 {[%emt 0:00:30]} a6 {[%emt 0:01:55]} 15. Ne5 {[%emt 0:06:19]} b5 {[%emt 0:03:22]} 16. g4 {[%emt 0:02:30]} g6 {[%emt 0:05:35]} 17. Bh6 {[%emt 0:02:00]} Nxe5 {[%emt 0:00:14]} 18. dxe5 {[%emt 0:01:30]} Nd7 {[%emt 0:00:13]} 19. Bxf8 {[%emt 0:03:04]} Bxf8 {[%emt 0:00:36]} 20. f4 {[%emt 0:05:28]} Qd8 {[%emt 0:02:26]} 21. Kg2 {[%emt 0:04:34]} Bg7 {[%emt 0:09:44]} 22. a4 {[%emt 0:03:18]} Qb6 {[%emt 0:02:08]} 23. axb5 {[%emt 0:02:43]} axb5 {[%emt 0:00:48]} 24. Qf2 {[%emt 0:07:29]} Qc6 {[%emt 0:03:19]} 25. h4 {[%emt 0:07:45]} Ra2 {[%emt 0:03:48]} 26. h5 {[%emt 0:07:20]} Nc5 {[%emt 0:01:08]} 27. Bb1 {[%emt 0:01:16]} Ra4 {[%emt 0:02:56]} 28. hxg6 {[%emt 0:01:15]} hxg6 {[%emt 0:01:33]} 29. b4 {[%emt 0:01:01]} Nd7 {[%emt 0:00:32]} 30. f5 {[%emt 0:01:36]} Nxe5 {[%emt 0:03:00]} 31. fxg6 {[%emt 0:01:54]} d4+ {[%emt 0:03:13]} 32. Be4 {[%emt 0:05:45]} Qc4 {[%emt 0:00:15]} 33. gxf7+ {[%emt 0:07:18]} Kf8 {[%emt 0:00:14]} 34. Qh4 {[%emt 0:00:37]} Ra2+ {[%emt 0:00:54]} 35. Kg1 {[%emt 0:01:45]} Qc7 {[%emt 0:01:34]} 36. Qh7 {[%emt 0:00:56]} Nxf7 {[%emt 0:01:11]} 37. Rxf7+ {[%emt 0:00:26]} Qxf7 {[%emt 0:01:11]} 38. Rf1 {[%emt 0:00:06]} Qxf1+ {[%emt 0:00:07]} 39. Kxf1 {[%emt 0:00:02]} dxc3 {[%emt 0:00:07]} 40. Qg6 {[%emt 0:01:01]} Bd4 {[%emt 0:00:35]} 41. Qxe6 {[%emt 0:30:29]} Rf2+ {[%emt 0:30:30]} 42. Ke1 {[%emt 0:00:02]} 1-0

[Event "LAT-chT Higher League 2019"]
[Site "Riga"]
[Date "2019.10.12"]
[Round "8.13"]
[White "Beks, Edmunds"]
[Black "Golubovskis, Maksims"]
[Result "1/2-1/2"]
[ECO "B40"]
[WhiteElo "2024"]
[BlackElo "2078"]
[Annotator "NA"]
[PlyCount "129"]
[EventDate "2019.02.15"]
[EventType "team-tourn"]
[EventCountry "LAT"]
[SourceTitle "playchess.com"]
[Source "ChessBase"]
[SourceQuality "1"]
[TimeControl "40/5400+30:1800+30"]

1. e4 {[%emt 0:00:00]} c5 {[%emt 0:00:00]} 2. b3 {[%emt 0:00:00]} Nf6 {[%emt 0:00:00]} 3. e5 {[%emt 0:00:02]} Nd5 {[%emt 0:00:07]} 4. Bb2 {[%emt 0:00:07]} Nc6 {[%emt 0:00:33]} 5. Nf3 {[%emt 0:00:06]} e6 {[%emt 0:00:24]} 6. c4 {[%emt 0:00:43]} Nc7 {[%emt 0:00:21]} 7. Bd3 {[%emt 0:00:28]} Be7 {[%emt 0:03:48]} 8. Nc3 {[%emt 0:02:13]} d5 {[%emt 0:05:59]} 9. exd6 {[%emt 0:01:59]} Qxd6 {[%emt 0:01:46]} 10. Bb1 {[%emt 0:00:09]} e5 {[%emt 0:01:56]} 11. O-O {[%emt 0:03:31]} f6 {[%emt 0:06:38]} 12. Nh4 {[%emt 0:05:46]} g6 {[%emt 0:07:10]} 13. f4 {[%emt 0:02:30]} f5 {[%emt 0:09:47]} 14. Nf3 {[%emt 0:00:10]} O-O {[%emt 0:11:51]} 15. Nb5 {[%emt 0:01:37]} Nxb5 {[%emt 0:00:45]} 16. cxb5 {[%emt 0:00:05]} e4 {[%emt 0:01:06]} 17. bxc6 {[%emt 0:00:58]} exf3 {[%emt 0:01:47]} 18. Qxf3 {[%emt 0:00:18]} bxc6 {[%emt 0:00:19]} 19. Be5 {[%emt 0:03:43]} Qd5 {[%emt 0:02:41]} 20. Bd3 {[%emt 0:00:16]} Qxf3 {[%emt 0:01:55]} 21. Rxf3 {[%emt 0:00:18]} Be6 {[%emt 0:00:21]} 22. Ba6 {[%emt 0:07:48]} Rad8 {[%emt 0:02:11]} 23. d3 {[%emt 0:00:54]} Kf7 {[%emt 0:02:27]} 24. Re3 {[%emt 0:01:37]} Rd7 {[%emt 0:04:20]} 25. Rae1 {[%emt 0:01:58]} Bd5 {[%emt 0:01:59]} 26. Bb2 {[%emt 0:02:31]} Bd6 {[%emt 0:03:08]} 27. g3 {[%emt 0:00:15]} h6 {[%emt 0:02:37]} 28. Bc4 {[%emt 0:09:02]} Re7 {[%emt 0:05:15]} 29. Rxe7+ {[%emt 0:01:54]} Bxe7 {[%emt 0:00:18]} 30. Ba3 {[%emt 0:00:06]} Rd8 {[%emt 0:01:24]} 31. Re2 {[%emt 0:01:50]} Bxc4 {[%emt 0:04:50]} 32. dxc4 {[%emt 0:00:06]} a5 {[%emt 0:01:45]} 33. Kf2 {[%emt 0:02:06]} a4 {[%emt 0:03:54]} 34. bxa4 {[%emt 0:03:28]} Ra8 {[%emt 0:02:04]} 35. Rc2 {[%emt 0:00:12]} Rxa4 {[%emt 0:00:10]} 36. Bc1 {[%emt 0:00:05]} Bf6 {[%emt 0:01:24]} 37. Ke3 {[%emt 0:00:20]} g5 {[%emt 0:01:12]} 38. Kd3 {[%emt 0:01:47]} g4 {[%emt 0:01:56]} 39. a3 {[%emt 0:01:17]} h5 {[%emt 0:00:35]} 40. Ra2 {[%emt 0:01:30]} Ke6 {[%emt 0:00:57]} 41. Bd2 {[%emt 0:33:02]} Kd6 {[%emt 0:35:27]} 42. Bc3 {[%emt 0:00:16]} Bxc3 {[%emt 0:01:45]} 43. Kxc3 {[%emt 0:00:15]} Ra8 {[%emt 0:01:25]} 44. a4 {[%emt 0:00:32]} Kc7 {[%emt 0:00:20]} 45. Re2 {[%emt 0:05:26]} Rxa4 {[%emt 0:00:22]} 46. Re7+ {[%emt 0:00:09]} Kd6 {[%emt 0:00:42]} 47. Rh7 {[%emt 0:01:45]} Ra2 {[%emt 0:00:33]} 48. Rxh5 {[%emt 0:00:07]} Ke6 {[%emt 0:00:16]} 49. Rh6+ {[%emt 0:00:10]} Kd7 {[%emt 0:00:34]} 50. Kb3 {[%emt 0:07:32]} Rf2 {[%emt 0:00:19]} 51. Kc3 {[%emt 0:02:33]} Ra2 {[%emt 0:00:06]} 52. Rf6 {[%emt 0:01:30]} Rxh2 {[%emt 0:00:10]} 53. Rxf5 {[%emt 0:00:02]} Rh3 {[%emt 0:00:25]} 54. Rxc5 {[%emt 0:00:04]} Rxg3+ {[%emt 0:00:29]} 55. Kd4 {[%emt 0:00:06]} Rg1 {[%emt 0:00:25]} 56. Rg5 {[%emt 0:01:00]} g3 {[%emt 0:00:11]} 57. Kc5 {[%emt 0:00:04]} g2 {[%emt 0:00:40]} 58. f5 {[%emt 0:00:09]} Ke7 {[%emt 0:01:00]} 59. Rg6 {[%emt 0:00:15]} Kf7 {[%emt 0:00:54]} 60. Kxc6 {[%emt 0:00:36]} Rc1 {[%emt 0:00:09]} 61. Rxg2 {[%emt 0:00:10]} Rxc4+ {[%emt 0:00:04]} 62. Kd5 {[%emt 0:00:07]} Rc1 {[%emt 0:00:12]} 63. Ke5 {[%emt 0:00:14]} Rf1 {[%emt 0:00:41]} 64. Ra2 {[%emt 0:01:28]} Re1+ {[%emt 0:00:08]} 65. Kd4 {[%emt 0:31:13]} 1/2-1/2

[Event "LAT-chT Higher League 2019"]
[Site "Riga"]
[Date "2019.10.12"]
[Round "8.14"]
[White "Jazdanovs, Aleksandrs"]
[Black "Krastins, Juris"]
[Result "1/2-1/2"]
[ECO "B76"]
[WhiteElo "2209"]
[BlackElo "1843"]
[Annotator "NA"]
[PlyCount "77"]
[EventDate "2019.02.15"]
[EventType "team-tourn"]
[EventCountry "LAT"]
[SourceTitle "playchess.com"]
[Source "ChessBase"]
[SourceQuality "1"]
[TimeControl "40/5400+30:1800+30"]

1. e4 {[%emt 0:00:00]} c5 {[%emt 0:00:00]} 2. Nf3 {[%emt 0:00:00]} d6 {[%emt 0:00:00]} 3. d4 {[%emt 0:00:00]} cxd4 {[%emt 0:00:06]} 4. Nxd4 {[%emt 0:00:00]} Nf6 {[%emt 0:00:09]} 5. Nc3 {[%emt 0:00:04]} g6 {[%emt 0:00:15]} 6. Be3 {[%emt 0:00:05]} Bg7 {[%emt 0:00:07]} 7. f3 {[%emt 0:00:06]} O-O {[%emt 0:00:09]} 8. Qd2 {[%emt 0:00:03]} Nc6 {[%emt 0:00:19]} 9. O-O-O {[%emt 0:00:08]} d5 {[%emt 0:00:40]} 10. exd5 {[%emt 0:00:07]} Nxd5 {[%emt 0:00:14]} 11. Nxc6 {[%emt 0:00:05]} bxc6 {[%emt 0:00:08]} 12. Nxd5 {[%emt 0:00:04]} cxd5 {[%emt 0:00:06]} 13. Bh6 {[%emt 0:00:04]} Bxh6 {[%emt 0:07:27]} 14. Qxh6 {[%emt 0:00:06]} Qa5 {[%emt 0:00:14]} 15. Kb1 {[%emt 0:00:27]} Rb8 {[%emt 0:07:13]} 16. h4 {[%emt 0:05:07]} Bf5 {[%emt 0:09:18]} 17. Bd3 {[%emt 0:01:44]} Qc3 {[%emt 0:08:24]} 18. b3 {[%emt 0:00:06]} e6 {[%emt 0:02:59]} 19. Bxf5 {[%emt 0:02:00]} gxf5 {[%emt 0:00:32]} 20. Rh3 {[%emt 0:01:08]} Rbc8 {[%emt 0:09:45]} 21. Qd2 {[%emt 0:00:12]} Qxd2 {[%emt 0:02:36]} 22. Rxd2 {[%emt 0:00:07]} Kg7 {[%emt 0:00:19]} 23. f4 {[%emt 0:00:18]} Kf6 {[%emt 0:00:27]} 24. Re3 {[%emt 0:00:12]} Rg8 {[%emt 0:04:13]} 25. c3 {[%emt 0:00:40]} Rc5 {[%emt 0:08:39]} 26. Kb2 {[%emt 0:01:47]} Ke7 {[%emt 0:02:48]} 27. g3 {[%emt 0:05:16]} Rgc8 {[%emt 0:01:42]} 28. Rd4 {[%emt 0:01:55]} Kf6 {[%emt 0:01:21]} 29. Red3 {[%emt 0:02:41]} Kg6 {[%emt 0:01:29]} 30. b4 {[%emt 0:00:49]} R5c7 {[%emt 0:00:25]} 31. a4 {[%emt 0:02:29]} Kf6 {[%emt 0:00:47]} 32. Kb3 {[%emt 0:04:50]} Ke7 {[%emt 0:00:20]} 33. b5 {[%emt 0:02:45]} Rc4 {[%emt 0:00:47]} 34. Kc2 {[%emt 0:03:27]} Kd6 {[%emt 0:04:14]} 35. Kb3 {[%emt 0:09:38]} Ke7 {[%emt 0:00:43]} 36. Re3 {[%emt 0:16:25]} Kd6 {[%emt 0:00:39]} 37. Rf3 {[%emt 0:07:19]} R8c5 {[%emt 0:07:32]} 38. Rfd3 {[%emt 0:15:15]} Kc7 {[%emt 0:00:42]} 39. Re3 {[%emt 0:03:34]} 1/2-1/2

[Event "LAT-chT Higher League 2019"]
[Site "Riga"]
[Date "2019.10.12"]
[Round "8.15"]
[White "Zemzare, Agnija"]
[Black "Badelka, Olga"]
[Result "1/2-1/2"]
[ECO "A58"]
[WhiteElo "1931"]
[BlackElo "2413"]
[Annotator "NA"]
[PlyCount "85"]
[EventDate "2019.02.15"]
[EventType "team-tourn"]
[EventCountry "LAT"]
[SourceTitle "playchess.com"]
[Source "ChessBase"]
[SourceQuality "1"]
[TimeControl "40/5400+30:1800+30"]

1. d4 {[%emt 0:00:00]} Nf6 {[%emt 0:00:00]} 2. c4 {[%emt 0:00:00]} c5 {[%emt 0:00:00]} 3. d5 {[%emt 0:00:00]} b5 {[%emt 0:00:00]} 4. cxb5 {[%emt 0:00:14]} a6 {[%emt 0:00:02]} 5. bxa6 {[%emt 0:00:05]} g6 {[%emt 0:00:07]} 6. Nc3 {[%emt 0:00:18]} Bxa6 {[%emt 0:00:05]} 7. g3 {[%emt 0:01:35]} d6 {[%emt 0:00:15]} 8. Bg2 {[%emt 0:00:43]} Bg7 {[%emt 0:00:06]} 9. Nf3 {[%emt 0:03:45]} Nbd7 {[%emt 0:00:09]} 10. O-O {[%emt 1:28:20]} Nb6 {[%emt 0:02:26]} 11. Nd2 {[%emt 0:00:00]} O-O {[%emt 0:00:38]} 12. Re1 {[%emt 0:00:00]} Ng4 {[%emt 0:03:33]} 13. Qc2 {[%emt 0:00:00]} Bd4 {[%emt 0:07:56]} 14. e3 {[%emt 0:00:00]} Bg7 {[%emt 0:00:18]} 15. Nde4 {[%emt 0:00:00]} Ne5 {[%emt 0:02:28]} 16. Rd1 {[%emt 0:00:00]} c4 {[%emt 0:18:05]} 17. f4 {[%emt 0:00:00]} Nd3 {[%emt 0:00:21]} 18. Bd2 {[%emt 0:00:00]} Nb4 {[%emt 0:02:15]} 19. Qc1 {[%emt 0:00:00]} N4xd5 {[%emt 0:03:23]} 20. Nxd5 {[%emt 0:00:00]} Nxd5 {[%emt 0:00:04]} 21. Nf2 {[%emt 0:00:00]} e6 {[%emt 0:02:22]} 22. Bxd5 {[%emt 0:00:00]} exd5 {[%emt 0:00:04]} 23. Bc3 {[%emt 0:00:00]} Bb7 {[%emt 0:05:54]} 24. Bxg7 {[%emt 0:00:00]} Kxg7 {[%emt 0:00:31]} 25. Qc3+ {[%emt 0:00:00]} f6 {[%emt 0:01:31]} 26. b4 {[%emt 0:00:00]} Ra4 {[%emt 0:03:24]} 27. a3 {[%emt 0:00:00]} Qe7 {[%emt 0:03:24]} 28. Rd4 {[%emt 0:00:00]} h5 {[%emt 0:02:47]} 29. Nd1 {[%emt 0:00:00]} h4 {[%emt 0:00:26]} 30. g4 {[%emt 0:00:00]} h3 {[%emt 0:01:08]} 31. Nf2 {[%emt 0:00:00]} Re8 {[%emt 0:04:47]} 32. e4 {[%emt 0:02:24]} Kg8 {[%emt 0:10:48]} 33. Nxh3 {[%emt 0:03:25]} dxe4 {[%emt 0:00:29]} 34. Rxc4 {[%emt 0:01:04]} e3 {[%emt 0:17:35]} 35. Qc2 {[%emt 0:02:57]} e2 {[%emt 0:04:57]} 36. Qxg6+ {[%emt 0:00:36]} Kf8 {[%emt 0:00:02]} 37. Re1 {[%emt 0:00:45]} Ba6 {[%emt 0:05:22]} 38. Rxe2 {[%emt 0:01:58]} Qa7+ {[%emt 0:00:33]} 39. Nf2 {[%emt 0:00:37]} Rxe2 {[%emt 0:00:09]} 40. Qxf6+ {[%emt 0:00:11]} Qf7 {[%emt 0:01:02]} 41. Qh8+ {[%emt 0:30:01]} Qg8 {[%emt 0:30:20]} 42. Qf6+ {[%emt 0:00:02]} Qf7 {[%emt 0:00:05]} 43. Qh8+ {[%emt 0:00:01]} 1/2-1/2

[Event "LAT-chT Higher League 2019"]
[Site "Riga"]
[Date "2019.10.13"]
[Round "9.1"]
[White "Semjonovs, Ilja"]
[Black "Meshkovs, Nikita"]
[Result "0-1"]
[ECO "C60"]
[WhiteElo "2357"]
[BlackElo "2548"]
[Annotator "ChessBase"]
[PlyCount "62"]
[EventDate "2019.02.15"]
[EventType "team-tourn"]
[EventCountry "LAT"]
[SourceTitle "playchess.com"]
[Source "ChessBase"]
[SourceQuality "1"]
[TimeControl "40/5400+30:1800+30"]

1. e4 {[%emt 0:01:38]} e5 {[%emt 0:00:00]} 2. Nf3 {[%emt 0:00:14]} Nc6 {[%emt 0:00:00]} 3. Bb5 {[%emt 0:00:34]} a6 {[%emt 0:00:10]} 4. Ba4 {[%emt 0:00:05]} Nge7 {[%emt 0:00:08]} 5. c3 {[%emt 0:04:38]} g6 {[%emt 0:00:34]} 6. O-O {[%emt 0:00:20]} Bg7 {[%emt 0:00:11]} 7. d4 {[%emt 0:01:39]} exd4 {[%emt 0:04:34]} 8. cxd4 {[%emt 0:00:08]} b5 {[%emt 0:00:07]} 9. Bb3 {[%emt 0:01:12]} O-O {[%emt 0:17:07]} 10. Nc3 {[%emt 0:06:45]} Na5 {[%emt 0:04:21]} 11. Bc2 {[%emt 0:03:33]} d6 {[%emt 0:04:28]} 12. h3 {[%emt 0:05:42]} c5 {[%emt 0:09:23]} 13. b3 {[%emt 0:09:00]} Bb7 {[%emt 0:08:12]} 14. Ne2 {[%emt 0:16:14]} Re8 {[%emt 0:10:48]} 15. Re1 {[%emt 0:06:50]} Nec6 {[%emt 0:04:28]} 16. Bb2 {[%emt 0:07:59]} Rc8 {[%emt 0:11:29]} 17. a3 {[%emt 0:06:53]} b4 {[%emt 0:00:46]} 18. Bd3 {[%emt 0:03:37]} bxa3 {[%emt 0:03:41]} 19. Rxa3 {[%emt 0:00:14]} Nb4 {[%emt 0:00:01]} 20. Ng3 {[%emt 0:00:16]} Nac6 {[%emt 0:04:27]} 21. Bb1 {[%emt 0:08:08]} cxd4 {[%emt 0:00:39]} 22. Qd2 {[%emt 0:04:45]} Qb6 {[%emt 0:02:24]} 23. Ne2 {[%emt 0:00:41]} d5 {[%emt 0:01:21]} 24. Nexd4 {[%emt 0:03:38]} Nxd4 {[%emt 0:00:51]} 25. Bxd4 {[%emt 0:00:56]} Bxd4 {[%emt 0:00:36]} 26. Qxd4 {[%emt 0:00:06]} Qxd4 {[%emt 0:00:27]} 27. Nxd4 {[%emt 0:00:13]} dxe4 {[%emt 0:00:38]} 28. Ra4 {[%emt 0:00:33]} Nd5 {[%emt 0:05:21]} 29. Rxe4 {[%emt 0:02:00]} Rc1+ {[%emt 0:00:21]} 30. Kh2 {[%emt 0:00:04]} Rd8 {[%emt 0:00:30]} 31. Bd3 {[%emt 0:02:44]} Nc3 {[%emt 0:00:37]} 0-1

[Event "LAT-chT Higher League 2019"]
[Site "Riga"]
[Date "2019.10.13"]
[Round "9.2"]
[White "Laurusas, Tomas"]
[Black "Chukavin, Kirill"]
[Result "1/2-1/2"]
[ECO "D43"]
[WhiteElo "2501"]
[BlackElo "2332"]
[Annotator "ChessBase"]
[PlyCount "59"]
[EventDate "2019.02.15"]
[EventType "team-tourn"]
[EventCountry "LAT"]
[SourceTitle "playchess.com"]
[Source "ChessBase"]
[SourceQuality "1"]
[TimeControl "40/5400+30:1800+30"]

1. d4 {[%emt 0:00:00]} Nf6 {[%emt 0:01:43]} 2. c4 {[%emt 0:00:00]} e6 {[%emt 0:00:18]} 3. Nf3 {[%emt 0:00:00]} d5 {[%emt 0:00:37]} 4. Bg5 {[%emt 0:00:07]} h6 {[%emt 0:01:23]} 5. Bxf6 {[%emt 0:00:42]} Qxf6 {[%emt 0:00:11]} 6. Nc3 {[%emt 0:00:15]} c6 {[%emt 0:00:25]} 7. e3 {[%emt 0:00:15]} Nd7 {[%emt 0:01:07]} 8. a3 {[%emt 0:00:41]} g6 {[%emt 0:01:23]} 9. e4 {[%emt 0:09:53]} dxe4 {[%emt 0:08:48]} 10. Nxe4 {[%emt 0:00:05]} Qf4 {[%emt 0:02:08]} 11. Qc2 {[%emt 0:25:50]} e5 {[%emt 0:19:20]} 12. c5 {[%emt 0:08:05]} exd4 {[%emt 0:16:42]} 13. Qe2 {[%emt 0:13:41]} d3 {[%emt 0:07:16]} 14. Nd6+ {[%emt 0:14:49]} Kd8 {[%emt 0:00:06]} 15. Qe8+ {[%emt 0:00:30]} Kc7 {[%emt 0:00:02]} 16. Nxf7 {[%emt 0:07:33]} Rh7 {[%emt 0:05:54]} 17. N3e5 {[%emt 0:01:12]} Qe4+ {[%emt 0:04:45]} 18. Kd1 {[%emt 0:00:02]} Rxf7 {[%emt 0:01:03]} 19. Qxf7 {[%emt 0:00:16]} Qxe5 {[%emt 0:00:10]} 20. Bxd3 {[%emt 0:00:05]} Qxb2 {[%emt 0:02:33]} 21. Ra2 {[%emt 0:01:40]} Qd4 {[%emt 0:02:44]} 22. Rd2 {[%emt 0:00:02]} Qa1+ {[%emt 0:07:20]} 23. Kc2 {[%emt 0:00:01]} Qxh1 {[%emt 0:00:27]} 24. Qf4+ {[%emt 0:00:04]} Kd8 {[%emt 0:00:06]} 25. Rd1 {[%emt 0:00:04]} Qxg2 {[%emt 0:03:01]} 26. Be4 {[%emt 0:00:06]} Qg5 {[%emt 0:00:27]} 27. Qxf8+ {[%emt 0:00:05]} Kc7 {[%emt 0:00:07]} 28. Qd6+ {[%emt 0:00:04]} Kd8 {[%emt 0:00:04]} 29. Qf8+ {[%emt 0:00:47]} Kc7 {[%emt 0:00:03]} 30. Qd6+ {[%emt 0:00:04]} 1/2-1/2

[Event "LAT-chT Higher League 2019"]
[Site "Riga"]
[Date "2019.10.13"]
[Round "9.3"]
[White "Golubovskis, Maksims"]
[Black "Sveshnikov, Vladimir"]
[Result "0-1"]
[ECO "D02"]
[WhiteElo "2078"]
[BlackElo "2419"]
[Annotator "NA"]
[PlyCount "148"]
[EventDate "2019.02.15"]
[EventType "team-tourn"]
[EventCountry "LAT"]
[SourceTitle "playchess.com"]
[Source "ChessBase"]
[SourceQuality "1"]
[TimeControl "40/5400+30:1800+30"]

1. Nf3 {[%emt 0:00:55]} d5 {[%emt 0:00:00]} 2. d4 {[%emt 0:00:06]} Nf6 {[%emt 0:00:00]} 3. Bf4 {[%emt 0:00:12]} c5 {[%emt 0:00:00]} 4. e3 {[%emt 0:00:06]} Nc6 {[%emt 0:00:00]} 5. c3 {[%emt 0:01:59]} Qb6 {[%emt 0:00:00]} 6. Qc1 {[%emt 0:00:16]} Bf5 {[%emt 0:03:14]} 7. Be2 {[%emt 0:02:02]} Rc8 {[%emt 0:02:11]} 8. O-O {[%emt 0:08:17]} g6 {[%emt 0:07:19]} 9. h3 {[%emt 0:01:32]} Bg7 {[%emt 0:00:06]} 10. dxc5 {[%emt 0:15:06]} Qxc5 {[%emt 0:00:08]} 11. Nd4 {[%emt 0:04:12]} Bd7 {[%emt 0:00:16]} 12. Nxc6 {[%emt 0:00:47]} Bxc6 {[%emt 0:04:36]} 13. Be5 {[%emt 0:01:01]} O-O {[%emt 0:00:07]} 14. Nd2 {[%emt 0:00:34]} Rfd8 {[%emt 0:06:11]} 15. Nb3 {[%emt 0:06:42]} Qb6 {[%emt 0:00:14]} 16. Nd4 {[%emt 0:00:48]} Ne4 {[%emt 0:01:00]} 17. Bxg7 {[%emt 0:02:13]} Kxg7 {[%emt 0:00:01]} 18. Rd1 {[%emt 0:06:05]} Ba4 {[%emt 0:01:53]} 19. Re1 {[%emt 0:00:14]} e5 {[%emt 0:00:29]} 20. Nf3 {[%emt 0:00:27]} Qf6 {[%emt 0:06:39]} 21. Rf1 {[%emt 0:05:10]} d4 {[%emt 0:13:12]} 22. exd4 {[%emt 0:02:42]} exd4 {[%emt 0:00:06]} 23. Qb1 {[%emt 0:01:18]} dxc3 {[%emt 0:07:46]} 24. Qxe4 {[%emt 0:00:52]} cxb2 {[%emt 0:00:09]} 25. Rae1 {[%emt 0:07:52]} Bc2 {[%emt 0:00:47]} 26. Qb4 {[%emt 0:02:58]} Rc6 {[%emt 0:02:32]} 27. Nd2 {[%emt 0:09:46]} Rb6 {[%emt 0:19:23]} 28. Qa5 {[%emt 0:00:25]} Re6 {[%emt 0:15:24]} 29. Qb4 {[%emt 0:17:51]} Rde8 {[%emt 0:01:50]} 30. Qc4 {[%emt 0:00:45]} Rc6 {[%emt 0:05:27]} 31. Qb5 {[%emt 0:01:04]} Re7 {[%emt 0:03:08]} 32. Qb4 {[%emt 0:01:43]} Rb6 {[%emt 0:00:59]} 33. Qc4 {[%emt 0:00:00]} Rc6 {[%emt 0:00:35]} 34. Qb4 {[%emt 0:00:00]} Bf5 {[%emt 0:00:32]} 35. g4 {[%emt 0:00:38]} Rb6 {[%emt 0:00:28]} 36. Qf4 {[%emt 0:00:31]} b1=Q {[%emt 0:00:36]} 37. Nxb1 {[%emt 0:00:10]} Bxb1 {[%emt 0:00:19]} 38. Qxf6+ {[%emt 0:00:21]} Rxf6 {[%emt 0:00:51]} 39. Bc4 {[%emt 0:00:01]} Rxe1 {[%emt 0:00:29]} 40. Rxe1 {[%emt 0:00:00]} Bc2 {[%emt 0:00:30]} 41. Re7 {[%emt 0:30:17]} b6 {[%emt 0:30:30]} 42. Rxa7 {[%emt 0:00:52]} g5 {[%emt 0:00:02]} 43. Rc7 {[%emt 0:00:12]} Be4 {[%emt 0:00:08]} 44. Re7 {[%emt 0:00:52]} Bc6 {[%emt 0:00:27]} 45. Kf1 {[%emt 0:01:02]} Rf4 {[%emt 0:00:17]} 46. Bb3 {[%emt 0:00:17]} h6 {[%emt 0:00:44]} 47. Rc7 {[%emt 0:00:17]} Be4 {[%emt 0:00:50]} 48. Bc4 {[%emt 0:01:23]} Kg6 {[%emt 0:00:28]} 49. Rd7 {[%emt 0:00:37]} Bc6 {[%emt 0:01:03]} 50. Rd6+ {[%emt 0:00:52]} Rf6 {[%emt 0:00:01]} 51. Rd4 {[%emt 0:00:22]} Kg7 {[%emt 0:00:27]} 52. Bb3 {[%emt 0:00:38]} Kf8 {[%emt 0:00:19]} 53. Rd8+ {[%emt 0:00:08]} Ke7 {[%emt 0:00:10]} 54. Rb8 {[%emt 0:00:11]} Bf3 {[%emt 0:00:30]} 55. Rc8 {[%emt 0:00:39]} Rc6 {[%emt 0:00:37]} 56. Rxc6 {[%emt 0:00:51]} Bxc6 {[%emt 0:00:02]} 57. Kg1 {[%emt 0:00:32]} f6 {[%emt 0:00:22]} 58. Kh2 {[%emt 0:00:14]} Kd6 {[%emt 0:00:01]} 59. Bc2 {[%emt 0:00:35]} Kc5 {[%emt 0:00:34]} 60. h4 {[%emt 0:00:34]} Kb4 {[%emt 0:00:09]} 61. Kg3 {[%emt 0:00:45]} Bd5 {[%emt 0:00:06]} 62. f4 {[%emt 0:00:09]} Bxa2 {[%emt 0:00:08]} 63. hxg5 {[%emt 0:00:07]} hxg5 {[%emt 0:00:05]} 64. fxg5 {[%emt 0:00:03]} fxg5 {[%emt 0:00:05]} 65. Kf3 {[%emt 0:00:18]} Kc3 {[%emt 0:00:16]} 66. Bf5 {[%emt 0:01:51]} Bd5+ {[%emt 0:01:00]} 67. Ke3 {[%emt 0:00:25]} b5 {[%emt 0:00:06]} 68. Bg6 {[%emt 0:00:36]} b4 {[%emt 0:00:08]} 69. Bd3 {[%emt 0:00:26]} b3 {[%emt 0:00:06]} 70. Bf5 {[%emt 0:00:08]} b2 {[%emt 0:00:07]} 71. Bb1 {[%emt 0:00:59]} Be6 {[%emt 0:00:06]} 72. Ke4 {[%emt 0:00:14]} Bxg4 {[%emt 0:00:06]} 73. Ke5 {[%emt 0:00:05]} Be2 {[%emt 0:00:09]} 74. Kf5 {[%emt 0:00:06]} Bd3+ {[%emt 0:00:04]} 0-1